Cogmind - Beta 17 @@@ ROGUE MODE // 2026.07.14 @ 11:23:00 Player: pinbox Result: Destroyed by SB-VXR(R) with Subdweller Machine Gun Performance ------------- Evolutions (0) 0 Regions Visited (2) 400 Robots Destroyed (18) 90 Value Destroyed (548) 548 Prototype IDs (0) 0 Alien Tech Used (0) 0 Bonus (0) 0 TOTAL SCORE: 1038 Bonus ------- None Cogmind --------- Core Integrity 0/250 Matter 294/300 Energy 69/100 System Corruption 0% Temperature Cool (0) Movement Rolling (120) Ox1 Location -10/Subcaves Parts ------- > --- POWER (1) -------- (None) > --- PROPULSION (2) --- Subdweller Monowheel Subdweller Monowheel > --- UTILITY (2) ------ High-capacity Storage Unit Subdweller Optics > --- WEAPON (2) ------- Ripper > --- INVENTORY (20) --- Subdweller Power Source Subdweller Power Source Subdweller Power Source Subdweller Power Source Subdweller Power Source Subdweller Power Source Subdweller Monowheel Subdweller Monowheel Subdweller Monowheel Subdweller Monowheel Subdweller Monowheel Subdweller Optics Subdweller Laser Subdweller Laser Subdweller Beam Cannon Subdweller Machine Gun Subdweller Shrapnel Launcher Subdweller Shrapnel Launcher Peak State ------------ > --- POWER ------------ Light Ion Engine > --- PROPULSION ------- Light Treads Subdweller Monowheel > --- UTILITY ---------- High-capacity Storage Unit Subdweller Optics > --- WEAPON ----------- Battle Rifle Ripper > --- INVENTORY -------- Subdweller Power Source Subdweller Power Source Subdweller Power Source Subdweller Power Source Subdweller Power Source Subdweller Power Source Subdweller Monowheel Subdweller Monowheel Subdweller Monowheel Subdweller Monowheel Subdweller Monowheel Subdweller Monowheel Subdweller Monowheel Subdweller Optics Subdweller Laser Subdweller Laser Subdweller Beam Cannon Subdweller Machine Gun Subdweller Shrapnel Launcher Subdweller Shrapnel Launcher [Rating: 17] Favorites ----------- Power Ion Engine Engine Ion Engine Propulsion Light Treads Treads Light Treads Wheel Subdweller Monowheel Utility High-capacity Storage Unit Device Seismic Detector Storage High-capacity Storage Unit Weapon Battle Rifle Energy Gun Subdweller Laser Energy Cannon Subdweller Beam Cannon Ballistic Gun Battle Rifle Launcher Grenade Launcher Slashing Weapon Ripper Build | -11 -10 -10 ------- Run | Yrd Mat Sub Slots Evolved . | . . . Power . | . . . Propulsion . | . . . Utility . | . . . Weapon . | . . . Parts Attached 22 | 7 1 14 Power 3 | 1 . 2 Engine 3 | 1 . 2 Core . | . . . Reactor . | . . . Propulsion 6 | 2 . 4 Treads 3 | 2 . 1 Leg . | . . . Wheel 3 | . . 3 Hover . | . . . Flight . | . . . Utility 5 | 2 1 2 Device 3 | 1 . 2 Storage 2 | 1 1 . Processor . | . . . Hackware . | . . . Protection . | . . . Artifact . | . . . Weapon 8 | 2 . 6 Energy Gun 1 | . . 1 Energy Cannon 1 | . . 1 Ballistic Gun 4 | 2 . 2 Ballistic Cannon . | . . . Launcher 1 | . . 1 Special Weapon . | . . . Impact Weapon . | . . . Slashing Weapon 1 | . . 1 Piercing Weapon . | . . . Special Melee Weapon . | . . . Unidentified Prototypes . | . . . Parts Lost 9 | . . 9 Power 2 | . . 2 Propulsion 4 | . . 4 Utility 1 | . . 1 Weapon 2 | . . 2 Highest Loss Streak 4 | . . 4 To Critical Strikes . | . . . Average Backups 11 | . 1 11 Power 2 | . 1 2 Propulsion 4 | . . 4 Utility 1 | . . 1 Weapon 3 | . . 3 Tool/Special . | . . . Unused Backups 14 | . . 14 Power 6 | . . 6 Propulsion 5 | . . 5 Utility . | . . . Weapon 3 | . . 3 Tool/Special . | . . . Average Slot Usage (%) 92 | . 100 92 Engine 13 | . 14 13 Treads 18 | . 28 18 Wheel 4 | . . 4 Device 12 | . 14 11 Storage 14 | . 14 14 Energy Gun 4 | . . 4 Energy Cannon 2 | . . 2 Ballistic Gun 15 | . 28 14 Slashing Weapon 5 | . . 5 Peak Build Rating 17 | 7 7 17 Average Rating 11 | 4 7 11 On Entrance 4 | . 7 7 Avg Prop Armor Cover (%) 4 | . . 4 Naked Turns . | . . . Heaviest Build 56 | 11 46 56 Greatest Support 40 | 40 40 40 Greatest Overweight (x) 2 | . 1 2 Average Overweight (x) 1 | . . 1 Largest Inventory Capacity 20 | 8 20 20 Average Capacity 19 | 7 19 20 Most Carried 20 | 1 2 20 Average Carried 11 | . 1 11 Final Capacity 20 | 8 20 20 Final Carried 18 | 1 2 18 Class Distribution -------------------- 100% | Mutant Dominant Class ---------------- Mutant | -10/Materials Mutant | -10/Subcaves Resources | -11 -10 -10 ----------- Run | Yrd Mat Sub Matter Collected 606 | 278 5 323 Remotely . | . . . Salvage Created 576 | 104 . 472 Parts 37 | 6 . 31 Haulers Intercepted . | . . . Recyclers Shooed 1 | 1 . . Parts Field Recycled . | . . . Retrieved Matter . | . . . Parts Self-Destructed 19 | . . 19 Prevented . | . . . Parts Restored . | . . . Kills | -11 -10 -10 ------- Run | Yrd Mat Sub Combat Hostiles Destroyed 14 | . . 14 Melee 3 | . . 3 Guns 4 | . . 4 Cannons 3 | . . 3 AOE 4 | . . 4 Classes Destroyed 7 | 2 . 5 Tunneler 1 | 1 . . Recycler 1 | 1 . . Turret 2 | . . 2 Swarmer 3 | . . 3 Sentry 1 | . . 1 Artisan 1 | . . 1 Subdweller 10 | . . 10 Best Kill Streak 4 | 2 . 4 Combat Bots Only 4 | . . 4 Max Kills in Single Turn 2 | 1 . 2 Gunslinging . | . . . Exploded 2 | . . 2 Melee 1 | . . 1 Uniques/NPCs Destroyed . | . . . Combat | -11 -10 -10 -------- Run | Yrd Mat Sub Hostile Shots Fired 116 | . . 116 Missed 39 | . . 39 Hits 77 | . . 77 Projectile 77 | . . 77 Critical Strikes 2 | . . 2 Damage Taken 1289 | . . 1289 Core 269 | . . 269 Absorbed by Shields . | . . . Core Remaining (%) 100 | 100 . . Volleys Fired 51 | 4 . 47 Largest 2 | 2 . 2 Hottest 105 | 40 . 105 Shots Fired 87 | 8 . 79 Gun 67 | 8 . 59 Cannon 12 | . . 12 Launcher 8 | . . 8 Special . | . . . Kinetic 52 | 8 . 44 Thermal 27 | . . 27 Explosive 8 | . . 8 Electromagnetic . | . . . Robot Hit Streak 11 | 3 . 11 Robot Miss Streak 2 | 2 . 2 Penetration Max . | . . . Secondary Targets . | . . . Shots Hit Robots 53 | 5 . 48 Core Hits 28 | 4 . 24 Critical Kills 1 | . . 1 Critical Parts Destroyed . | . . . Critical Strikes 1 | . . 1 Destroy 1 | . . 1 Melee Attacks 27 | . . 27 Impact . | . . . Slashing 27 | . . 27 Piercing . | . . . Sneak Attacks 1 | . . 1 Combat Hostiles . | . . . Follow-up Attacks . | . . . Damage Inflicted 1599 | 41 5 1553 Guns 474 | 41 . 433 Cannons 240 | . . 240 Explosions 546 | . . 546 Melee 334 | . . 334 Ramming 5 | . 5 . Kinetic 282 | 41 . 241 Thermal 432 | . . 432 Explosive 546 | . . 546 Electromagnetic . | . . . Impact . | . . . Slashing 334 | . . 334 Piercing . | . . . Highest Corruption . | . . . Average Corruption . | . . . Corruption Purged . | . . . Corruption Blocked . | . . . Overload Shots . | . . . Overflow Damage 47 | . . 47 Projectiles . | . . . Explosions . | . . . Melee 47 | . . 47 Knockbacks . | . . . Impact . | . . . Kinetic . | . . . Secondary . | . . . Self-Inflicted Damage 14 | . . 14 Shots 1 | . . 1 Rammed 1 | . 1 . Targets Rammed 1 | . 1 . Kicked . | . . . Crushed . | . . . Highest Temperature 249 | . . 249 Average Temperature 46 | . . 46 Received Heat Transfer 552 | . . 552 Siege Activations . | . . . Martial Activations . | . . . Shielding Activations . | . . . Robots Disrupted . | . . . Combat Hostiles . | . . . Robots Corrupted . | . . . Combat Hostiles . | . . . Parts Fried . | . . . Impact Corruptions . | . . . Robots Melted . | . . . Combat Hostiles . | . . . Parts Melted . | . . . Heat Transferred 558 | . . 558 Parts Sabotaged . | . . . Parts Stolen . | . . . Parts Stripped . | . . . Power Chain Reactions . | . . . Alert | -11 -10 -10 ------- Run | Yrd Mat Sub Maximum Alert Level . | . . . Low Security (%) 100 | 100 100 . Level 1 . | . . . Level 2 . | . . . Level 3 . | . . . Level 4 . | . . . Level 5 . | . . . High Security . | . . . Max Security . | . . . Peak Influence 10 | 10 . . Initial . | . . . Average . | 1 . . Influence Increases 205 | 10 . 195 Destroy 0b10 Robot/C 120 | . . 120 Destroy 0b10 Robot/NC 10 | 10 . . Lose Combat Pursuer 75 | . . 75 Influence Decreases 205 | 10 . 195 Time Decay 166 | 10 . 156 Lost Part 39 | . . 39 Squads Dispatched . | . . . Investigation . | . . . Extermination . | . . . Reinforcement . | . . . Assault . | . . . Garrison . | . . . Intercept . | . . . Searches Triggered . | . . . Construction Impeded . | . . . Haulers Reinforced . | . . . Active Scanning Responses . | . . . Cargo Convoy Interrupts . | . . . Stealth | -11 -10 -10 --------- Run | Yrd Mat Sub Distress Signals . | . . . Communications Jammed . | . . . Distress Signals . | . . . Times Spotted 20 | . . 20 Peak Tracking Total 6 | . . 6 Tactical Retreats 3 | . . 3 Traps | -11 -10 -10 ------- Run | Yrd Mat Sub Traps Triggered . | . . . Indirectly . | . . . Trap Hack Attempts . | . . . Triggered . | . . . Disarmed . | . . . Reprogrammed . | . . . Reused . | . . . Traps Extracted . | . . . Installed . | . . . Triggered . | . . . Machines | -11 -10 -10 ---------- Run | Yrd Mat Sub Machines Disabled 1 | . . 1 Max in Single Turn 1 | . . 1 Machines Repaired . | . . . Machines Dismantled . | . . . Machines Sabotaged . | . . . Overloaded Fab Kills . | . . . Hacking | -11 -10 -10 --------- Run | Yrd Mat Sub Machines Accessed 1 | . . 1 Terminals . | . . . Fabricators . | . . . Repair Stations . | . . . Recycling Units . | . . . Scanalyzers . | . . . Garrison Access . | . . . Total Hacks 3 | . . 3 Successful 3 | . . 3 Failed . | . . . Catastrophic . | . . . Database Lockouts . | . . . Manual . | . . . Terminals . | . . . Fabricators . | . . . Repair Stations . | . . . Recycling Units . | . . . Scanalyzers . | . . . Garrison Access . | . . . Terminal Hacks 3 | . . 3 Record 3 | . . 3 Fabricator Hacks . | . . . Repair Station Hacks . | . . . Recycling Unit Hacks . | . . . Scanalyzer . | . . . Garrison Access Hacks . | . . . Unauthorized Hacks . | . . . Terminals . | . . . Fabricators . | . . . Repair Stations . | . . . Recycling Units . | . . . Scanalyzers . | . . . Garrison Access . | . . . Data Cores Recovered . | . . . Used . | . . . Hacking Detections . | . . . Full Trace Events . | . . . Feedback Events . | . . . Feedback Blocked . | . . . Robot Schematics Acquired . | . . . Robots Built . | . . . Authchips . | . . . Time . | . . . Total Robot Build Rating . | . . . Part Schematics Acquired . | . . . Parts Built . | . . . Authchips . | . . . Time . | . . . Total Part Build Rating . | . . . Part Studies Acquired . | . . . Parts Repaired . | . . . Time . | . . . Parts Recycled . | . . . Recycled Matter . | . . . Retrieved Matter . | . . . Retrieved Components . | . . . Parts Scanalyzed . | . . . Part Schematics Acquired . | . . . Parts Damaged . | . . . Bothacking | -11 -10 -10 ------------ Run | Yrd Mat Sub Used RIF Installer . | . . . Robots Hacked . | . . . Non-combat . | . . . Combat . | . . . Robot Hacks Applied . | . . . Relay Couplers Released . | . . . Fabnet Peak Effective % . | . . . Robots Rewired . | . . . Allies Hacked . | . . . Hacks Repelled . | . . . Allies | -11 -10 -10 -------- Run | Yrd Mat Sub Total Allies . | . . . Largest Group . | . . . Highest-Rated Group . | . . . Highest-Rated Ally . | . . . Total Orders . | . . . Ally Attacks . | . . . Total Damage . | . . . Kills . | . . . Allies Corrupted . | . . . Allies Melted . | . . . Intel | -11 -10 -10 ------- Run | Yrd Mat Sub Active Infowar (turns) 3674 | 11 155 3508 Optics 1391 | . . 1391 Seismic 2283 | 11 155 2117 Robot Analysis Total . | . . . Derelict Logs Recovered 2 | . . 2 Drone Launches . | . . . Drone Recoveries . | . . . Exploration | -11 -10 -10 ------------- Run | Yrd Mat Sub Turns Passed 4360 | 87 155 4118 Spaces Moved 1445 | 44 65 1336 Core 4 | 4 . . Treads 1438 | 40 65 1333 Legs . | . . . Wheels 3 | . . 3 Hover . | . . . Flight . | . . . Fastest Speed 50 | 50 160 120 Average Speed 282 | 150 232 289 Slowest Speed 320 | 160 240 320 Overloaded Moves . | . . . Propulsion Burnouts . | . . . Robots Hopped . | . . . Potential Cave-ins . | . . . Cave-ins Triggered . | . . . Exploration Rate (%) 30 | 4 18 68 Regions Visited 2 Branch Regions 1 Pre-discovered Areas 1 | . . 1 Known Exits Taken . | . . . Unknown Exits Taken 2 | 1 1 . Scrap Searched 9 | . . 9 Spaces Dug 3 | . . 3 Terrain Destroyed 34 | . . 34 Melee 3 | . . 3 Projectile . | . . . AOE 31 | . . 31 Terrain Rammed . | . . . Walls Destroyed . | . . . Machines Disabled . | . . . Actions | -11 -10 -10 --------- Run | Yrd Mat Sub Total 1599 | 55 68 1476 Wait 14 | . . 14 Move 1443 | 43 64 1336 Hop . | . . . Pick Up 26 | 1 1 24 Fast Attach 9 | 7 . 2 Attach 13 | . . 13 Detach 8 | . . 8 Swap 2 | . 1 1 Drop 5 | . 1 4 Fire 51 | 4 . 47 Melee 27 | . . 27 Ram . | . . . Kick . | . . . Crush 1 | . 1 . Escape Stasis . | . . . Rewire . | . . . Trap . | . . . Miscellaneous . | . . . Route ------- -11/Scrapyard -10/Materials (discovered 2 exits: [*Mat] / *Sub) -10/Subcaves (discovered 3 exits: [*Mat] / [*Rec] / [*Scr]) History --------- Turn | Location | Event 5 | -11/Scrapyard | Discovered new exit (range 16) 88 | -11/Scrapyard | Entered Materials 89 | -10/Materials | Met a group of wandering Federalists 178 | -10/Materials | Discovered new exit (range 13) 233 | -10/Materials | Discovered new exit (range 5) 243 | -10/Materials | Entered Subcaves 244 | -10/Subcaves | Continued accompanying wandering Federalists (6) 244 | -10/Subcaves | Approached by a straggling Scientist 311 | -10/Subcaves | Build established: Mutant 449 | -10/Subcaves | Visited Clippyterm 456 | -10/Subcaves | Learned location of Deep Caves (-7) 1232 | -10/Subcaves | Core integrity fell below 50% 1260 | -10/Subcaves | Lost 3 parts (1p1n1w) 1457 | -10/Subcaves | Discovered new exit (range 15) 1787 | -10/Subcaves | Disturbed a concealed Subdweller 2262 | -10/Subcaves | Learned location of 1 exit from Materials 2329 | -10/Subcaves | Discovered new exit (range 13) 2521 | -10/Subcaves | Learned Materials security intel 2580 | -10/Subcaves | Shifting Twisted Machinery released Ripper 2674 | -10/Subcaves | Shifting Twisted Machinery released Sub. Monowheel 2743 | -10/Subcaves | Shifting Twisted Machinery released Sub. Power Source 2798 | -10/Subcaves | Shifting Twisted Machinery released Sub. Monowheel 3444 | -10/Subcaves | Shifting Twisted Machinery released Sub. Power Source 3457 | -10/Subcaves | Shifting Twisted Machinery released Sub. Shrapnel Launcher 3950 | -10/Subcaves | Ambushed by angry Subdweller bent on revenge 4347 | -10/Subcaves | Core integrity fell below 20% 4361 | -10/Subcaves | Destroyed by SB-VXR(R) with Subdweller Machine Gun Last Messages --------------- [Achievement: Art Critic] 03940_ YE-0U1(u) destroyed. 03944_ Dropped Ion Engine. 03945_ Acquired 10 matter. 03949_ Subatomizers dissect the Wheel. 03951_ V7-4RP(R): "MADSUB!" 04301_ R2-EOK(R) destroyed. 04309_ Subatomizers dissect the Disposable Heat Sink. 04309_ Acquired Sub. Machine Gun. 04323_ Subatomizers dissect the Disposable Heat Sink. 04342_ Battle Rifle destroyed. 04344_ Lgt. Ion Engine destroyed. 04352_ Sub. Monowheel destroyed. 04352_ Lgt. Treads destroyed. 04353_ Acquired 10 matter. 04354_ Acquired 4 matter. 04354_ 5W-P8N(R) destroyed. 04358_ Subatomizers dissect the Sub. Optics. Map ----- +----------------------------------------------------+ | ??????????????# & # ### ####### ##??### | | ??????????????####"## ##?## #????? #?????# | | ????????????????????# ????# #????? #?????? | | ??????????????????### ???## %#####????? ##?????? | | ??????????????????# #### >#????????? ##??????? | | ?????????????????## ## #?????????###???????? | | ?????????????????# ##???????????????????? | | ?????????????????## #???######???????????? | | ??????????????????# #??## #???????????? | | ??????????????????## #??# #???####????? | | ???????????????????# #??# #???# ##???? | | ???????????????????# % ###?## ###???# #???? | | ???????????????????## % #???# ####### #???? | | ????????????????????# ###### #???? | | ????????????????????# ### % ##???? | | ????????????????????## #????? | | ?????????????????????### # #????? | | ???????????????????????###### ###????? | | ????????????????????????????## % #??????? | | ???????????????????????????## #????? | | ???????????????????????????# *& ### #???? | | ????????????????????####???## ##%&#### ### #??? | | ???????????????????## #?######! ######??# ##??? | | ???????????????????# ## ## # ###????##???? | | ???????????????????# ##????????? | | ??????????????????????###@ ######?### | | ????????????????????????##R&### #?# | | ?????????????????????????#! ## ## #?# | | ????????????????????????% ###### ##?# | | ???????????????????????%# # #???# ## ##??# | | ??????????????????????#?### ??# ### #???## | | ??????????????????????????## ?###?# ##???## | | ????????????????????????????#% #????# ##???# | | ?????????????????????????????# #????# ###?? | | ?????????????????????????????? #?##?## #?? | | ?????????????????????????????? #### ## #?? | | ??????????????????????????????# #### ### | | ???????????????????????????????#### ## | | ?????????????????????????????????# | | ?????????????????????????????????# | | ?????????????????????????????????# | | ??????????????????????????????# ## # | | ?????????????????????????????# ?# # | | ????????????????????????????? ## | | ????????????????????????????? #### ##? | | ????????????????????????????? ????### ######?? | | ?????????????????????????????????????#####???????? | | ?????????????????????????????????????????????????? | | ?????????????????????????????????????????????????? | | ?????????????????????????????????????????????????? | +----------------------------------------------------+ Best States ------------- Heat Dissipation 25 Energy Generation 10 Energy Capacity 250 Matter Stores 300 Matter Capacity 300 Sight Range 21 Terrain Scan Density 10 Evasion (%) 40 Recoil Reduction 2 Item Schematics ----------------- None Robot Schematics ------------------ None Fabricated ------------ Nothing Repaired ---------- Nothing Studied --------- None Alien Tech Used ----------------- None Achievements -------------- Art Critic Challenges ------------ None Game ------ Seed CoolingSpikedBooster Manual? 0 Play Time 00:14:57 Cumulative 51.5 hours Start 2026.07.14 @ 11:09:35 End 2026.07.14 @ 11:23:00 Sessions 1 Manual Loads 0 Difficulty Rogue Special Mode None Game No. 58 Rogue 58 Adventurer 0 Explorer 0 Win Type - Total 1 Types 1/0/0/0/0/0/0/0/0/0 Lore% 49 Gallery% 37 Achievement% 34 Wizard Run 0 Options --------- Layout 1 ASCII 0 Keyboard 1 Movement Numpad Keybinds 1 Fullscreen 2 Font 24/Smallcaps Map View 50x40 Zoom Use 0% Tactical HUD 1 Map Filters NONE Filters NONE Steam 1 RUN: 1ff14dc7-2ead-4575-adfd-01da2112ad35